bitfinex-derivatives/quotes_BTCF0:USTF0_20241120
["timestamp","ask_amount","ask_price","bid_price","bid_amount"]
[1732131633281,0.3608,93770.0,93769.0,0.053271]
[1732131633478,0.414071,93770.0,93769.0,0.053271]
[1732131634666,0.3608,93770.0,93769.0,0.053271]
[1732131637958,0.3608,93770.0,93769.0,0.178311]
[1732131638362,0.00060001,93781.0,93769.0,0.90796774]
[1732131638570,0.3608,93805.0,93780.0,0.46300774]
[1732131638571,0.105,93800.0,93780.0,0.46300774]
[1732131638763,0.1,93800.0,93799.0,0.053254]
[1732131638963,0.1,93800.0,93799.0,0.178294]
[1732131639269,0.1,93800.0,93799.0,1.678294]
[1732131640171,0.153254,93800.0,93799.0,1.678294]
[1732131640369,0.1,93800.0,93799.0,1.678294]
[1732131643968,0.1,93800.0,93799.0,0.178294]
[1732131645967,0.1,93800.0,93799.0,0.209094]
[1732131649575,0.1,93800.0,93799.0,0.240594]
[1732131650874,0.3608,93815.0,93814.0,0.053246]
[1732131651086,0.3608,93815.0,93807.0,0.05325]
[1732131651767,0.3608,93815.0,93814.0,0.053246]
[1732131652273,0.414045,93815.0,93814.0,0.053246]
[1732131652474,0.053249,93812.0,93811.0,0.053247]
[1732131652871,0.46360775,93815.0,93808.0,1.50064]
[1732131653078,0.46360775,93815.0,93799.0,0.54814]
[1732131653079,0.053254,93803.0,93802.0,0.053251]
[1732131653378,0.10220774,93809.0,93799.0,0.56980721]
[1732131653379,0.05325,93808.0,93807.0,0.053249]
[1732131653573,0.053246,93814.0,93813.0,0.053246]
[1732131656072,0.36140001,93815.0,93814.0,0.053246]
[1732131656283,0.3608,93815.0,93814.0,0.053246]
[1732131656484,0.12432,93837.0,93814.0,0.053246]
[1732131656485,0.3608,93837.0,93820.0,0.053242]
[1732131656668,0.10220774,93835.0,93814.0,0.10220774]
[1732131656871,0.38274938,93824.0,93814.0,0.10220774]
[1732131657067,0.38274938,93824.0,93822.0,0.053241]
[1732131657780,0.053243,93820.0,93818.0,0.053243]
[1732131657987,0.02254939,93824.0,93813.0,0.02241559]
[1732131658196,0.19035775,93852.0,93813.0,0.02241559]
[1732131658197,0.16363146,93847.0,93820.0,0.3608]
[1732131658478,0.01033491,93846.0,93835.0,0.053234]
[1732131658685,0.01033491,93845.0,93832.0,0.053235]
[1732131658886,0.10220774,93841.0,93832.0,0.053235]
[1732131659075,0.10220774,93842.0,93836.0,1.5]
[1732131659378,0.05360008,93854.0,93836.0,1.5]
[1732131659586,0.15543774,93842.0,93836.0,1.5]
[1732131659785,0.053232,93839.0,93837.0,0.04325262]
[1732131660082,0.053232,93839.0,93838.0,0.04325262]
[1732131660667,0.053232,93839.0,93838.0,0.01663562]
[1732131661176,0.372912,93839.0,93838.0,0.01663562]
[1732131661380,0.25765248,93830.0,93829.0,0.3608]
[1732131661575,0.053242,93821.0,93804.0,0.053251]
[1732131661781,0.46300774,93830.0,93815.0,0.02662349]
[1732131661782,0.0308,93820.0,93815.0,0.02662349]
[1732131661972,0.0643,93829.0,93811.0,0.053247]
[1732131662178,0.16650774,93829.0,93811.0,0.053247]
[1732131663088,0.18814925,93829.0,93811.0,0.053247]
[1732131663300,0.10220774,93822.0,93806.0,0.02157553]
[1732131663872,0.10220774,93822.0,93807.0,0.05325]
[1732131664078,0.10220774,93822.0,93803.0,0.48512]
[1732131664079,0.053245,93815.0,93803.0,0.3608]
[1732131664276,0.10220774,93822.0,93795.0,0.3608]
[1732131664277,0.3608,93819.0,93795.0,0.3608]
[1732131664515,0.3608,93822.0,93791.0,0.10220774]
[1732131664783,0.3608,93812.0,93796.0,0.053256]
[1732131666084,0.0315,93811.0,93796.0,0.053256]
[1732131668389,0.0315,93811.0,93798.0,0.053255]
[1732131668588,0.0315,93811.0,93799.0,0.0328]
[1732131668892,0.15863146,93817.0,93806.0,0.3608]
[1732131669077,0.02229286,93817.0,93806.0,0.3608]
[1732131669279,0.03,93825.0,93806.0,0.3608]
[1732131669481,0.03,93825.0,93811.0,0.053247]
[1732131669686,0.053246,93815.0,93806.0,0.3608]
[1732131669989,0.053247,93812.0,93806.0,0.3608]
[1732131670888,0.053247,93812.0,93799.0,0.0328]
[1732131670889,0.053252,93803.0,93799.0,0.0328]
[1732131671080,0.3,93812.0,93789.0,0.3608]
[1732131671081,0.053259,93791.0,93789.0,0.3608]
[1732131671278,0.10220774,93790.0,93782.0,0.0317]
[1732131671491,0.053261,93788.0,93782.0,0.0317]
[1732131674091,0.3608,93792.0,93786.0,0.053262]
[1732131674480,0.3608,93792.0,93782.0,0.0317]
[1732131674703,0.3608,93792.0,93790.0,0.053259]
[1732131674886,0.10220774,93808.0,93785.0,0.10220774]
[1732131674887,0.69699946,93810.0,93788.0,0.3608]
[1732131675090,0.41460801,93810.0,93799.0,0.10220774]
[1732131675297,0.414048,93810.0,93800.0,0.0303]
[1732131675894,0.43597546,93810.0,93800.0,0.0303]
[1732131676984,0.053253,93802.0,93800.0,0.0303]
[1732131677695,0.053256,93796.0,93788.0,0.3608]
[1732131678098,0.053256,93796.0,93789.0,0.0302]
[1732131678300,0.46356775,93801.0,93789.0,0.0302]
[1732131678608,0.053259,93791.0,93789.0,0.0302]
[1732131680590,0.10220774,93793.0,93780.0,0.00159927]
[1732131680790,0.27950174,93800.0,93780.0,0.00159927]
[1732131680791,0.053265,93781.0,93780.0,0.00159927]
[1732131684500,0.053269,93773.0,93749.0,0.31624861]
[1732131684709,0.053269,93773.0,93742.0,0.74029834]
[1732131684710,0.053283,93749.0,93748.0,0.0317]
[1732131685010,0.053277,93759.0,93742.0,0.36148]
[1732131685011,0.053286,93743.0,93742.0,0.00068]
[1732131685201,0.053289,93738.0,93735.0,0.0317]
[1732131685388,0.3608,93744.0,93735.0,0.0317]
[1732131685591,9.557e-05,93743.0,93735.0,0.0317]
[1732131686405,0.053288,93740.0,93735.0,0.0317]
[1732131686911,9.557e-05,93743.0,93735.0,0.0317]
[1732131687112,9.557e-05,93743.0,93738.0,0.053289]
[1732131687299,9.557e-05,93743.0,93741.0,0.053287]
[1732131695132,9.557e-05,93743.0,93735.0,0.0317]
[1732131695133,0.05329,93737.0,93735.0,0.0317]
[1732131695304,0.10220774,93736.0,93735.0,0.0317]
[1732131696708,0.15549774,93736.0,93735.0,0.0317]
[1732131698518,0.10220774,93736.0,93735.0,0.084991]
[1732131699011,9.557e-05,93743.0,93735.0,0.084991]
[1732131699217,9.557e-05,93743.0,93736.0,0.3608]
[1732131699716,9.557e-05,93743.0,93735.0,0.084991]
[1732131700010,9.557e-05,93743.0,93736.0,0.3608]
[1732131700413,9.557e-05,93743.0,93742.0,0.053287]
[1732131701609,0.3608,93758.0,93742.0,0.177407]
[1732131701811,0.3608,93758.0,93757.0,0.053278]
[1732131702005,0.3608,93758.0,93749.0,0.053283]
[1732131702410,0.3608,93758.0,93757.0,0.053278]
[1732131704514,0.053282,93750.0,93748.0,0.053283]
[1732131704714,0.10220774,93749.0,93748.0,0.053283]
[1732131704916,0.053285,93745.0,93742.0,0.053287]
[1732131705112,0.05329,93737.0,93735.0,0.084991]
[1732131705308,0.3608,93756.0,93739.0,0.053288]
[1732131705309,0.10220774,93741.0,93739.0,0.053288]
[1732131705509,0.15549474,93741.0,93739.0,0.053288]
[1732131705713,0.10220774,93741.0,93739.0,0.053288]
[1732131706048,0.053281,93752.0,93748.0,0.053283]
[1732131706323,0.053281,93752.0,93737.0,0.3608]
[1732131706324,0.38160785,93756.0,93755.0,0.053279]
[1732131706523,0.3608,93756.0,93755.0,0.053279]
[1732131708631,0.37103525,93756.0,93755.0,0.053279]
[1732131708926,0.3608,93756.0,93755.0,0.053279]
[1732131711924,0.37112008,93756.0,93755.0,0.053279]
[1732131713417,0.15863146,93767.0,93766.0,0.053273]
[1732131713616,0.01030049,93767.0,93766.0,0.053273]
[1732131713911,0.21189946,93776.0,93773.0,0.053269]
[1732131714122,0.00160016,93777.0,93773.0,0.053269]
[1732131714123,0.16023162,93777.0,93773.0,0.053269]
[1732131714421,0.08705255,93775.0,93773.0,0.053269]
[1732131714820,0.414069,93774.0,93773.0,0.053269]
[1732131715219,0.053275,93762.0,93761.0,0.3608]
[1732131715520,0.053273,93767.0,93766.0,0.053273]
[1732131717027,0.053275,93763.0,93762.0,0.0322]
[1732131721920,0.053275,93763.0,93762.0,0.085469]
[1732131722318,0.07462082,93763.0,93762.0,0.085469]
[1732131724827,0.07462082,93763.0,93762.0,0.0322]
[1732131725930,0.07462082,93763.0,93762.0,0.085469]
[1732131729838,0.053263,93773.0,93762.0,0.085469]
[1732131730226,0.053263,93773.0,93772.0,0.053263]
[1732131731443,0.07457345,93773.0,93772.0,0.053263]
[1732131732034,0.02131045,93773.0,93772.0,0.053263]
[1732131732233,0.00160016,93777.0,93774.0,0.053262]
[1732131732931,0.00160016,93777.0,93774.0,0.30781766]
[1732131733219,0.00160016,93777.0,93774.0,0.053262]
[1732131733636,0.08705824,93775.0,93774.0,0.053262]
[1732131734240,0.06645019,93775.0,93774.0,0.053262]
[1732131737550,0.00160016,93777.0,93774.0,0.10220774]
[1732131737729,0.005,93800.0,93772.0,0.44995635]
[1732131737730,0.053252,93793.0,93772.0,0.44995635]
[1732131737929,0.053252,93793.0,93792.0,0.053252]
[1732131738447,0.053252,93793.0,93792.0,0.05281961]
[1732131738829,0.053252,93793.0,93791.0,0.086252]
[1732131739326,0.053252,93793.0,93791.0,0.033]
[1732131739532,0.053252,93793.0,93792.0,0.053252]
[1732131740328,0.02117146,93794.0,93793.0,0.053251]
[1732131740535,0.0319,93818.0,93793.0,0.053251]
[1732131740739,0.0319,93818.0,93804.0,0.053245]
[1732131740929,0.13410774,93818.0,93807.0,0.053243]
[1732131741131,0.053242,93809.0,93807.0,0.053243]
[1732131741450,0.053242,93809.0,93808.0,0.053243]
[1732131741630,0.05324,93814.0,93803.0,0.053245]
[1732131741830,0.15461243,93818.0,93802.0,0.1236]
[1732131742030,0.15461243,93818.0,93808.0,0.053243]
[1732131742031,0.053241,93811.0,93808.0,0.053243]
[1732131742242,0.053241,93811.0,93809.0,0.3923]
[1732131742632,0.053241,93811.0,93809.0,0.445542]
[1732131743250,0.053241,93811.0,93809.0,0.084742]
[1732131743838,0.15461243,93818.0,93810.0,0.053242]
[1732131744036,0.053239,93816.0,93810.0,0.053242]
[1732131744241,0.05324,93814.0,93810.0,0.053242]
[1732131745749,0.053241,93812.0,93810.0,0.053242]
[1732131746548,0.053241,93812.0,93809.0,0.0315]
[1732131746549,0.15461243,93818.0,93809.0,0.0315]
[1732131747042,0.053242,93810.0,93809.0,0.0315]
[1732131747745,0.15461243,93818.0,93809.0,0.0315]
[1732131747950,0.053239,93815.0,93809.0,0.084742]
[1732131748647,0.053239,93815.0,93813.0,0.05324]
[1732131749350,0.05324,93814.0,93809.0,0.0315]
[1732131749939,0.05324,93814.0,93809.0,0.084742]
[1732131750554,0.15461243,93818.0,93809.0,0.084742]
[1732131751052,0.05324,93814.0,93809.0,0.084742]
[1732131751555,0.15461243,93818.0,93809.0,0.084742]
[1732131752460,0.05324,93813.0,93809.0,0.084742]
[1732131753368,0.15461243,93818.0,93809.0,0.084742]
[1732131753572,0.053242,93810.0,93809.0,0.084742]
[1732131756475,0.053242,93810.0,93809.0,0.0315]
[1732131757160,0.05240469,93818.0,93809.0,0.0315]
[1732131757466,0.05240469,93818.0,93814.0,0.053239]
[1732131757467,0.02050469,93818.0,93814.0,0.053239]
[1732131757656,0.02131679,93823.0,93809.0,0.0315]
[1732131757657,0.05324,93813.0,93809.0,0.084742]
[1732131758269,0.3608,93819.0,93804.0,0.3608]
[1732131758469,0.10220774,93810.0,93796.0,0.3608]
[1732131758763,0.053242,93809.0,93796.0,0.46300774]
[1732131758962,0.3608,93811.0,93806.0,0.053244]
[1732131759164,0.3608,93811.0,93807.0,0.0328]
[1732131759368,0.3608,93811.0,93807.0,0.086043]
[1732131760574,0.3608,93811.0,93807.0,0.0328]
[1732131760575,0.053243,93808.0,93807.0,0.0328]
[1732131763659,0.053243,93808.0,93796.0,0.3608]
[1732131763660,0.053249,93797.0,93796.0,0.3608]
[1732131764075,0.10220774,93799.0,93786.0,0.0301]
[1732131764270,0.15546274,93787.0,93786.0,0.0301]
[1732131764472,0.15546274,93787.0,93786.0,0.01606]
[1732131765074,0.12292402,93787.0,93775.0,0.25404394]
[1732131765273,0.12292402,93787.0,93770.0,0.053264]
[1732131765274,0.46300774,93781.0,93770.0,0.053264]
[1732131765477,0.10220774,93774.0,93771.0,0.053264]
[1732131765670,0.053263,93773.0,93771.0,0.053264]
[1732131765880,0.053264,93771.0,93769.0,0.25409508]
[1732131766069,0.10220774,93774.0,93769.0,0.25409508]
[1732131766070,0.10220774,93774.0,93772.0,0.053263]
[1732131766267,0.15546974,93774.0,93772.0,0.053263]
[1732131766471,0.053263,93773.0,93771.0,0.053264]
[1732131766676,0.053263,93773.0,93768.0,0.25409508]
[1732131766874,0.10220774,93774.0,93768.0,0.25409508]
[1732131767069,0.10220774,93774.0,93773.0,0.053263]
[1732131767269,0.46300774,93781.0,93778.0,0.05326]
[1732131767472,0.10220774,93781.0,93774.0,0.3608]
[1732131767667,0.053255,93788.0,93784.0,0.053256]
[1732131767983,0.053255,93788.0,93774.0,0.3608]
[1732131767984,0.053252,93792.0,93782.0,0.3608]
[1732131768175,0.053252,93792.0,93783.0,0.0317]
[1732131768368,0.053253,93791.0,93789.0,0.053254]
[1732131768678,0.053253,93791.0,93790.0,0.084753]
[1732131769882,0.053253,93791.0,93790.0,0.0315]
[1732131770078,0.053253,93791.0,93790.0,0.084753]
[1732131770278,0.053253,93791.0,93790.0,0.0315]
[1732131781890,0.31988,93791.0,93771.0,0.0308]
[1732131782093,0.15547074,93772.0,93771.0,0.0308]
[1732131782980,0.15547074,93772.0,93771.0,0.084064]
[1732131782981,0.10220774,93772.0,93771.0,0.084064]
[1732131783283,0.10220774,93772.0,93771.0,0.0308]
[1732131783794,0.10220774,93772.0,93771.0,0.084064]
[1732131784385,0.12259584,93772.0,93771.0,0.084064]
[1732131784890,0.36136001,93793.0,93771.0,0.084064]
[1732131784891,0.3608,93793.0,93771.0,0.89241635]
[1732131785187,0.3608,93793.0,93782.0,0.3608]
[1732131785378,0.3608,93793.0,93792.0,0.053252]
[1732131785574,0.053249,93798.0,93793.0,0.053251]
[1732131785793,0.053249,93798.0,93794.0,0.0609]
[1732131785986,0.3908,93807.0,93794.0,0.0609]
[1732131786287,0.39136001,93807.0,93794.0,0.114151]
[1732131786596,0.053249,93797.0,93794.0,0.114151]
[1732131786980,0.3908,93807.0,93794.0,0.0609]
[1732131787185,0.05325,93795.0,93794.0,0.0609]
[1732131789285,0.05325,93795.0,93784.0,0.25372109]
[1732131789600,0.10220774,93784.0,93782.0,0.414058]
[1732131789979,0.053257,93783.0,93782.0,0.3608]
[1732131790398,0.10220774,93784.0,93782.0,0.3608]
[1732131790692,0.10220774,93784.0,93782.0,0.61494273]
[1732131791274,0.10220774,93784.0,93783.0,0.053257]
[1732131791896,0.12309203,93784.0,93783.0,0.053257]
[1732131792082,0.12309203,93784.0,93783.0,0.30753843]
[1732131792389,0.12309203,93784.0,93783.0,0.053257]
[1732131792685,0.02088429,93784.0,93783.0,0.053257]
[1732131792888,0.053252,93791.0,93788.0,0.053254]
[1732131794485,0.053253,93790.0,93788.0,0.30756545]
[1732131794689,0.053253,93790.0,93788.0,0.05094898]
[1732131795484,0.10447921,93792.0,93791.0,0.053252]
[1732131795485,0.00227147,93792.0,93791.0,0.053252]
[1732131795992,0.07631702,93792.0,93788.0,0.25435357]
[1732131796199,0.05552347,93792.0,93788.0,0.25435357]
[1732131796785,0.00227147,93792.0,93788.0,0.25439028]
[1732131797089,0.00227147,93792.0,93787.0,0.25439028]
[1732131797793,0.053253,93790.0,93789.0,0.25439028]
[1732131798093,0.00227147,93792.0,93791.0,0.053252]
[1732131799784,0.00227147,93792.0,93783.0,0.37949834]
[1732131799785,0.31988,93791.0,93779.0,0.24863951]
[1732131799983,0.31988,93791.0,93759.0,0.3608]
[1732131799984,0.46300774,93780.0,93752.0,0.005]
[1732131800193,0.053276,93750.0,93749.0,0.00068]
[1732131800505,0.02075384,93750.0,93740.0,0.3608]
[1732131800688,0.10220774,93756.0,93740.0,0.3608]
[1732131801007,0.3608,93760.0,93741.0,0.04329538]
[1732131801295,0.3608,93760.0,93740.0,0.3608]
[1732131801296,0.10220774,93742.0,93740.0,0.3608]
[1732131801603,0.10220774,93742.0,93741.0,0.04329568]
[1732131802122,0.10220774,93742.0,93741.0,0.01665218]
[1732131803088,0.10220774,93742.0,93740.0,0.3608]
[1732131805094,0.10220774,93756.0,93740.0,0.3608]
[1732131805292,0.10220774,93756.0,93748.0,0.3608]
[1732131805498,0.10220774,93756.0,93749.0,0.0603]
[1732131805799,0.053271,93759.0,93749.0,0.0603]
[1732131805991,0.10220774,93757.0,93749.0,0.0603]
[1732131806193,0.10220774,93750.0,93749.0,0.0603]
[1732131809389,0.12270828,93750.0,93749.0,0.0603]
[1732131810998,0.10220774,93767.0,93749.0,0.0603]
[1732131811200,0.10220774,93767.0,93756.0,0.3608]
[1732131811201,0.053268,93763.0,93756.0,0.3608]
[1732131811497,0.053269,93762.0,93757.0,0.0323]
[1732131811804,0.053271,93759.0,93757.0,0.0323]
[1732131812188,0.053276,93750.0,93749.0,0.0603]
[1732131812388,0.10220774,93767.0,93750.0,0.0332]
[1732131812614,0.10220774,93760.0,93750.0,0.0332]
[1732131812790,0.053273,93754.0,93750.0,0.0332]
[1732131813000,0.053273,93756.0,93750.0,0.0332]
[1732131813400,0.053275,93751.0,93750.0,0.0332]
[1732131813690,0.053275,93751.0,93749.0,0.0603]
[1732131813691,0.053275,93751.0,93749.0,0.0302]
[1732131814905,0.053282,93739.0,93737.0,0.0633]
[1732131815093,0.15548974,93739.0,93737.0,0.0332]
[1732131815298,0.053282,93739.0,93737.0,0.0332]
[1732131815800,0.053282,93739.0,93733.0,0.0318]
[1732131815801,0.053285,93734.0,93733.0,0.0318]
[1732131816099,0.15549274,93734.0,93733.0,0.0318]
[1732131818794,0.10220774,93734.0,93733.0,0.0318]
[1732131819301,0.15549274,93734.0,93733.0,0.0318]
[1732131820999,0.15549274,93734.0,93700.0,0.1]
[1732131821000,0.053292,93722.0,93700.0,0.1]
[1732131821315,0.15549974,93722.0,93707.0,0.062]
[1732131821496,0.51630374,93714.0,93707.0,0.062]
[1732131821700,0.46300774,93714.0,93707.0,0.062]
[1732131822395,0.053291,93723.0,93707.0,0.062]
[1732131822595,0.053291,93723.0,93713.0,0.05341098]
[1732131823207,0.053291,93723.0,93713.0,0.00011398]
[1732131823407,0.3608,93731.0,93713.0,0.36091398]
[1732131823712,0.3608,93731.0,93716.0,0.10220774]
[1732131823914,0.3608,93731.0,93725.0,0.05329]
[1732131824203,0.3608,93731.0,93730.0,0.053287]
[1732131824403,0.38207697,93731.0,93730.0,0.053287]
[1732131825808,0.38207697,93731.0,93727.0,0.0315]
[1732131825809,0.053288,93728.0,93727.0,0.0315]
[1732131826010,0.10220774,93728.0,93727.0,0.0315]
[1732131826310,0.15549574,93728.0,93727.0,0.0315]
[1732131827008,0.38263698,93731.0,93727.0,0.0315]
[1732131827213,0.38207697,93731.0,93730.0,0.053287]
[1732131833804,0.02127697,93731.0,93730.0,0.053287]
[1732131834012,0.10220774,93735.0,93730.0,0.053287]
[1732131835524,0.10220774,93735.0,93728.0,0.0302]
[1732131835525,0.12312807,93735.0,93731.0,0.053286]
[1732131835705,0.12312807,93735.0,93728.0,0.0302]
[1732131836016,0.12312807,93735.0,93732.0,0.053286]
[1732131836517,0.12312807,93735.0,93728.0,0.0302]
[1732131836518,0.02092033,93735.0,93734.0,0.053285]
[1732131836709,0.3608,93739.0,93734.0,0.053285]
[1732131837216,0.3608,93739.0,93735.0,0.053284]
[1732131837513,0.3608,93739.0,93736.0,0.053283]
[1732131837514,0.38139521,93739.0,93736.0,0.053283]
[1732131838400,0.38139521,93739.0,93737.0,0.053283]
[1732131838905,0.38139521,93739.0,93734.0,0.053284]
[1732131840409,0.38139521,93739.0,93733.0,0.0324]
[1732131840410,0.38139521,93739.0,93737.0,0.053283]
[1732131841407,0.54098573,93739.0,93735.0,0.053284]
[1732131842018,0.43467721,93739.0,93735.0,0.053284]
[1732131842207,0.15959052,93738.0,93735.0,0.053284]
[1732131842413,0.59426773,93739.0,93735.0,0.053284]
[1732131842816,0.053283,93738.0,93733.0,0.0324]
[1732131843119,0.053283,93738.0,93734.0,0.053284]
[1732131843316,0.15959052,93737.0,93734.0,0.053284]
[1732131843721,0.053285,93734.0,93733.0,0.0324]
[1732131844321,0.21287552,93734.0,93733.0,0.0324]
[1732131845615,0.053286,93731.0,93728.0,0.0302]
[1732131846917,0.26179826,93735.0,93729.0,0.053287]
[1732131847135,0.31508226,93735.0,93728.0,0.0302]
[1732131847422,0.15549174,93735.0,93730.0,0.053287]
[1732131848116,0.10220774,93735.0,93733.0,0.053285]
[1732131848323,0.053284,93735.0,93729.0,0.053287]
[1732131848819,0.15959052,93737.0,93728.0,0.0302]
[1732131849021,0.15959052,93737.0,93736.0,0.053283]
[1732131849220,0.38199522,93739.0,93738.0,0.053282]
[1732131849418,0.38139521,93739.0,93738.0,0.053282]
[1732131852223,0.02059521,93739.0,93728.0,0.391]
[1732131852438,0.10220774,93735.0,93728.0,0.391]
[1732131852729,0.10220774,93735.0,93732.0,0.053286]
[1732131853529,0.10220774,93735.0,93728.0,0.444287]
[1732131854514,0.10220774,93735.0,93729.0,0.053287]
[1732131854721,0.15549174,93735.0,93729.0,0.053287]
[1732131855120,0.053285,93734.0,93729.0,0.053287]
[1732131855517,0.053286,93732.0,93728.0,0.391]
[1732131855722,0.02142282,93735.0,93728.0,0.391]
[1732131856034,0.053286,93732.0,93728.0,0.391]
[1732131856723,0.15959052,93739.0,93728.0,0.391]
[1732131856926,0.053286,93731.0,93728.0,0.391]
[1732131857131,0.15959052,93739.0,93728.0,0.391]
[1732131857326,0.053284,93735.0,93728.0,0.391]
[1732131857632,0.15959052,93739.0,93728.0,0.391]
[1732131858223,0.16976215,93738.0,93728.0,0.391]
[1732131858416,0.01017163,93737.0,93728.0,0.391]
[1732131858938,0.053282,93733.0,93728.0,0.391]
[1732131859130,0.01017163,93732.0,93728.0,0.391]
[1732131859319,0.01020328,93731.0,93728.0,0.391]
[1732131859522,0.02098575,93740.0,93728.0,0.391]
[1732131859523,0.01020328,93730.0,93728.0,0.391]
[1732131859719,0.15959052,93738.0,93728.0,0.391]
[1732131859918,0.15959052,93738.0,93733.0,0.25533235]
[1732131859919,0.01020364,93737.0,93733.0,0.25533235]
[1732131860134,0.01020364,93736.0,93733.0,0.25533235]
[1732131860319,0.01020364,93735.0,93733.0,0.25533235]
[1732131860519,0.01020364,93734.0,93733.0,0.25533235]
[1732131860834,0.06348464,93734.0,93733.0,0.25533235]
[1732131861537,0.01020364,93734.0,93733.0,0.25533235]
[1732131861729,0.053286,93734.0,93732.0,0.25533235]
[1732131861934,0.053286,93733.0,93732.0,0.25533235]
[1732131862155,0.15959052,93737.0,93732.0,0.25533235]
[1732131862450,0.21287452,93737.0,93732.0,0.25533235]
[1732131862733,0.053285,93736.0,93732.0,0.25533235]
[1732131862928,0.15959052,93737.0,93732.0,0.25533235]
[1732131862929,0.053286,93735.0,93732.0,0.25533235]
[1732131863128,0.053287,93733.0,93732.0,0.25533235]
[1732131866031,0.02098575,93740.0,93728.0,0.444289]
[1732131866032,0.21287452,93738.0,93729.0,0.053289]
[1732131866235,0.21287452,93738.0,93728.0,0.391]
[1732131866236,0.01019444,93737.0,93733.0,0.25526313]
[1732131866438,0.01019444,93736.0,93733.0,0.25526313]
[1732131867551,0.01019444,93736.0,93735.0,0.053285]
[1732131867834,0.01019444,93736.0,93734.0,0.25526313]
[1732131868039,0.38260576,93741.0,93728.0,0.391]
[1732131868040,0.15959052,93740.0,93735.0,0.053285]
[1732131868239,0.01012186,93739.0,93735.0,0.3085055]
[1732131868441,0.01012186,93738.0,93736.0,0.2552205]
[1732131868631,0.01012186,93737.0,93736.0,0.2552205]
[1732131868836,0.01012186,93737.0,93735.0,0.053285]
[1732131869034,0.01012186,93736.0,93734.0,0.2552205]
[1732131869342,0.01009139,93735.0,93734.0,0.2552205]
[1732131870230,0.01009139,93735.0,93734.0,0.3085065]
[1732131871834,0.01009139,93735.0,93734.0,0.053286]
[1732131872037,0.01009139,93735.0,93734.0,0.3085065]
[1732131872239,0.053283,93739.0,93734.0,0.3085065]
[1732131872240,0.21287352,93739.0,93734.0,0.3085065]
[1732131872446,0.01011567,93738.0,93735.0,0.053285]
[1732131872744,0.01011568,93737.0,93735.0,0.053285]
[1732131872954,0.15959052,93738.0,93735.0,0.053285]
[1732131872955,0.01011568,93736.0,93735.0,0.053285]
[1732131875242,0.06807119,93737.0,93735.0,0.053285]
[1732131875431,0.01011485,93736.0,93735.0,0.053285]
[1732131878332,0.1603852,93741.0,93740.0,0.053283]
[1732131878535,0.15982519,93747.0,93746.0,0.053279]
[1732131878736,0.02046709,93752.0,93746.0,0.13614238]
[1732131878946,0.05487062,93763.0,93751.0,0.06807119]
[1732131879138,0.05179854,93762.0,93758.0,0.053272]
[1732131879342,0.05179854,93762.0,93748.0,0.31819497]
[1732131879343,0.05179854,93762.0,93757.0,0.06807119]
[1732131879645,0.00160062,93763.0,93762.0,0.05327]
[1732131880032,0.00160062,93763.0,93762.0,0.12134119]
[1732131880233,0.02212835,93763.0,93762.0,0.12134119]
[1732131880542,0.00160062,93763.0,93762.0,0.12134119]
[1732131880730,0.00160062,93763.0,93762.0,0.05327]
[1732131885666,0.00056001,93782.0,93777.0,0.053262]
[1732131885840,0.00056001,93782.0,93777.0,0.15509119]
[1732131885841,0.02049683,93782.0,93777.0,0.15509119]
[1732131886147,0.02049683,93782.0,93781.0,0.053259]
[1732131886341,0.053253,93793.0,93790.0,0.053254]
[1732131886536,0.05552447,93792.0,93790.0,0.053254]
[1732131886949,0.00227147,93792.0,93785.0,0.3608]
[1732131887147,0.02357312,93792.0,93791.0,0.053254]
[1732131887457,0.00227147,93792.0,93791.0,0.053254]
[1732131889737,0.00227147,93792.0,93791.0,0.373094]
[1732131890148,0.00227147,93792.0,93791.0,0.39395457]
[1732131892057,0.00451523,93804.0,93792.0,0.31984]
[1732131892236,0.00451523,93804.0,93803.0,0.15507619]
[1732131892547,0.00451523,93804.0,93803.0,0.27667619]
[1732131892748,0.00451523,93804.0,93803.0,1.31807619]
[1732131893247,0.00555059,93808.0,93803.0,1.56482919]
[1732131893448,0.00555059,93808.0,93807.0,0.053244]
[1732131893847,0.00555059,93808.0,93807.0,0.373044]
[1732131894245,0.02127679,93825.0,93811.0,0.053242]
[1732131894446,0.02127679,93825.0,93811.0,0.83567119]
[1732131894658,0.01203806,93828.0,93811.0,0.83567119]
[1732131895250,0.06527106,93828.0,93811.0,0.83567119]
[1732131895549,0.053233,93827.0,93811.0,0.83567119]
[1732131895764,0.053233,93827.0,93811.0,0.95727119]
[1732131896952,0.02094457,93827.0,93811.0,0.95727119]
[1732131897143,0.053234,93826.0,93811.0,0.95727119]
[1732131898150,0.01203806,93828.0,93811.0,0.95727119]
[1732131899046,1e-08,93812.0,93811.0,0.95727119]
[1732131899347,1e-08,93812.0,93811.0,0.855442]
[1732131899552,1e-08,93812.0,93811.0,0.95727119]
[1732131900753,0.01203806,93828.0,93815.0,0.05324]
[1732131901056,0.01203806,93828.0,93819.0,0.51586719]
[1732131901355,0.01203806,93828.0,93819.0,0.95718719]
[1732131901653,0.01203806,93828.0,93819.0,1.00577838]
[1732131901859,0.01203806,93828.0,93827.0,0.053233]
[1732131902044,0.01256989,93832.0,93831.0,0.053231]
[1732131902246,0.01256989,93832.0,93831.0,0.414031]
[1732131902554,0.01520246,93840.0,93835.0,0.053229]
[1732131902747,0.01520246,93840.0,93839.0,0.15505519]
[1732131903146,0.01520246,93840.0,93839.0,1.65505519]
[1732131903543,0.01252127,93844.0,93843.0,0.053224]
[1732131903752,0.01252127,93844.0,93843.0,0.414024]
[1732131903953,0.01252127,93844.0,93843.0,0.733704]
[1732131904351,0.1307187,93851.0,93850.0,0.05322]
[1732131904654,0.1307187,93851.0,93850.0,1.05887838]
[1732131904955,0.1307187,93851.0,93850.0,0.95704919]
[1732131905655,0.1307187,93851.0,93850.0,0.85518]
[1732131905856,0.1307187,93851.0,93850.0,0.95700919]
[1732131906363,0.1307187,93851.0,93850.0,0.7973344]
[1732131906658,0.1307187,93851.0,93850.0,0.8505544]
[1732131907382,0.1307187,93851.0,93850.0,0.5309144]